{"text_format":"1","workbook":"xlsx","n_sheets":3,"sheets":["Allgemeine Angaben WP","Checkliste BAFA-Antrag WP","Anhang I"],"not_rendered":{"charts":0,"images":114,"macros":1,"external_links":0,"defined_names":21,"comments":0,"pivot_tables":0},"unopened":[],"bounds":{"document_bytes":16777216,"sheet_cells":100000,"rows_first":2000,"rows_last":500,"rows_between":2000,"halvings":0,"cell_chars":16384,"cell_head_chars":4096},"cells_cut":0,"cells_raw":0,"read":"whole","date_system":"1900"}

{"sheet":"Allgemeine Angaben WP","index":0,"n_rows":77,"n_cols":24,"rows_kept":77,"cut":false,"hidden":false,"merged":[[74,13,75,13],[5,9,6,9],[44,2,44,5],[69,18,71,18],[72,13,73,13],[72,18,73,18],[43,13,44,13],[69,12,70,12],[69,13,71,13],[43,12,44,12],[41,4,42,5],[45,2,45,5],[48,2,48,5],[49,2,49,5],[47,2,47,5]]}
[null,null,"Voraussetzungen zur Förderung von Wärmepumpen",null,null,null,null,null,null,null,null,null,"Aktueller \nFörderbetrag:",null,null,null,"ACHTUNG: Bei ''Voraussetzungen Basisförderung'' muss alles mit Ja beantwortet werden, sonst keine Förderung!"]
[null,null,null,null,"Fehlende \nAngaben:",{"$f":"COUNTIF(A6:A39,\"x\")","v":9}]
[null,null,{"$f":"IF(OR(O17>0,AND(K8=\"Sole/Wasser mit Erdsondenbohrung\",O19=1,OR(O18=\"Nach 01.04.2015\",O18=\"01.04.2015\"))),\"ACHTUNG: Bei ''Voraussetzungen Basisförderung'' muss alles mit Ja beantwortet werden, sonst keine Förderung!\",IF(OR(F2=0),\"ACHTUNG: Die Checkliste muss beachtet werden, sonst keine Förderung möglich!\",IF(AND(K8=\"Luft/Wasser\",N11<3.5),\"ACHTUNG: JAZ muss größer gleich 3,5 sein, sonst keine Förderung!\",IF(AND(OR(K8=\"Sole/Wasser ohne Erdsondenbohrung\",K8=\"Sole/Wasser mit Erdsondenbohrung\",K8=\"Wasser/Wasser\"),N6=1,N11<3.8),\"ACHTUNG: JAZ muss größer gleich 3,8 sein, sonst keine Förderung!\",IF(AND(OR(K8=\"Sole/Wasser ohne Erdsondenbohrung\",K8=\"Sole/Wasser mit Erdsondenbohrung\",K8=\"Wasser/Wasser\"),N6=0,N11<4),\"ACHTUNG: JAZ muss größer gleich 4,0 sein, sonst keine Förderung!\",IF(AND(N10>100,L10=TRUE),\"ACHTUNG: Die Heizleistung muss kleiner gleich 100 sein, sonst keine Förderung!\",IF(O7=1,\"ACHTUNG: Basisförderung nur im Gebäudebestand möglich!\",\"\")))))))","v":""},null,"Förderbetrag gesamt:",{"$f":"IF(ISERROR(SUM(MAX(H16,H19),H26,H31,H34,H35,H36,H39))=TRUE,\"\",SUM(MAX(H16,H19),H26,H31,H34,H35,H36,H39))","v":0},null,null,null,null,null,null,null,null,null,null,null,null,null,null,null,"ausgefüllt:"]
[null,null,"Basisförderung*",null,null,{"$f":"MAX(H16,H19)","v":0}]
[]
[{"$f":"IF(AND(K6=FALSE,L6=FALSE),\"x\",\"\")","v":"x"},null,"Wohngebäude",null,null,null,null,null,null,null,false,false,null,{"$f":"IF(K6=TRUE,1,0)","v":0},null,null,null,null,null,null,null,{"$f":"IF(OR(K6=TRUE,L6=TRUE),C6,0)","v":0}]
[{"$f":"IF(AND(K7=FALSE,L7=FALSE),\"x\",\"\")","v":"x"},null,"Einsatzbereich¹",null,null,null,null,null,null,null,false,false,null,{"$f":"IF(K7=TRUE,1,0)","v":0},{"$f":"IF(L7=TRUE,1,0)","v":0},{"$f":"IF(L7=TRUE,\"Neubau\",\"\")","v":""},null,null,null,null,null,{"$f":"IF(OR(K7=TRUE,L7=TRUE),C7,0)","v":0}]
[{"$f":"IF(K8=\"\",\"x\",\"\")","v":"x"},null,"Art der Wärmepumpe",null,null,null,null,null,null,null,null,null,null,null,null,"Luft/Wasser",{"$f":"ISTEXT(K8)","v":false},{"$f":"IF(K8=\"Luft/Wasser\",\"Supraeco SAO 60/80/110/140-2\",IF(K8=\"Sole/Wasser mit Erdsondenbohrung\",\"Supraeco STM 60/80/100-1\",IF(K8=\"Sole/Wasser ohne Erdsondenbohrung\",\"Supraeco STM 60/80/100-1\",IF(K8=\"Wasser/Wasser\",\"Supraeco STE 60/80/100/130/170-1\",\"\"))))","v":""},null,null,{"$f":"ISTEXT(K8)","v":false},{"$f":"IF(U8=TRUE,C8,0)","v":0}]
[{"$f":"IF(K9=\"\",\"x\",\"\")","v":"x"},null,"Wärmepumpe",null,null,null,null,null,null,null,null,null,{"$f":"IF(OR(K9=\"Supraeco SAO 60/80/110/140-2\",K9=\"Supraeco SAS ODU 75/100/120-ASE\",K9=\"Supraeco SAS ODU 75/100/120-ASB\",K9=\"Supraeco T220-1\",K9=\"Supraeco T330-2\"),\"Leistungsgeregelte WP\",\"WP mit fest eingestellter Leistung\")","v":"WP mit fest eingestellter Leistung"},null,null,"Sole/Wasser ohne Erdsondenbohrung",null,{"$f":"IF(K8=\"Luft/Wasser\",\"Supraeco SAO 90/170-2 HT\",IF(K8=\"Sole/Wasser mit Erdsondenbohrung\",\"Supraeco STE 60/80/100/130/170-1\",IF(K8=\"Sole/Wasser ohne Erdsondenbohrung\",\"Supraeco STE 60/80/100/130/170-1\",IF(K8=\"Wasser/Wasser\",\"Supraeco STM 60/80/100-1\",\"\"))))","v":""},null,null,{"$f":"ISTEXT(K9)","v":false},0]
[{"$f":"IF(K10=\"\",\"x\",\"\")","v":"x"},null,"Heizleistung der Wärmepumpe",null,"                    ","kW",null,null,null,null,null,{"$f":"IF(K10=\"\",FALSE,TRUE)","v":false},{"$f":"IF(M9=\"Leistungsgeregelte WP\",1,0)","v":0},{"$f":"IF(L10=FALSE,\"\",VALUE(K10))","v":""},null,"Sole/Wasser mit Erdsondenbohrung",{"$f":"ISNUMBER(N10)","v":false},{"$f":"IF(K8=\"Luft/Wasser\",\"Supraeco SAS ODU 75/100/120-ASE\",IF(K8=\"Sole/Wasser mit Erdsondenbohrung\",\"Supraeco T220-1\",IF(K8=\"Sole/Wasser ohne Erdsondenbohrung\",\"Supraeco T220-1\",\"\")))","v":""},"http://www.jahresarbeitszahlen.info/",null,{"$f":"IF(AND(N10>=0,L10=TRUE),TRUE,FALSE)","v":false},0]
["x",null,"Jahresarbeitszahl (JAZ)²",null,null,null,null,null,null,null,null,{"$f":"IF(K11=\"\",FALSE,TRUE)","v":false},null,"",null,"Wasser/Wasser",{"$f":"ISNUMBER(N11)","v":false},{"$f":"IF(K8=\"Luft/Wasser\",\"Supraeco SAS ODU 75/100/120-ASB\",IF(K8=\"Sole/Wasser mit Erdsondenbohrung\",\"Supraeco T330-2\",IF(K8=\"Sole/Wasser ohne Erdsondenbohrung\",\"Supraeco T330-2\",\"\")))","v":""},{"$f":"HYPERLINK(S10,\"JAZ\")","v":"JAZ"},null,{"$f":"IF(AND(N11>=0,L11=TRUE),TRUE,FALSE)","v":false},0]
[null,null,null,null,null,null,null,null,null,null,null,null,null,null,null,null,null,{"$f":"IF(K8=\"Luft/Wasser\",\"Supraeco SAS 4/6/8/11/13-2\")","v":false}]
[null,null,"Voraussetzungen Basisförderung*"]
[{"$f":"IF(AND(K14=FALSE,L14=FALSE),\"x\",\"\")","v":"x"},null,"Einbau eines Stromzählers",null,null,null,null,null,null,null,false,false,null,{"$f":"IF(K14=TRUE,1,0)","v":0},{"$f":"IF(L14=FALSE,0,1)","v":0},null,null,null,null,null,null,{"$f":"IF(OR(K14=TRUE,L14=TRUE),C14,0)","v":0}]
[{"$f":"IF(AND(K15=FALSE,L15=FALSE),\"x\",\"\")","v":"x"},null,"Durchführung eines hydraulischen Abgleichs",null,null,null,null,null,null,null,false,false,null,{"$f":"IF(K15=TRUE,1,0)","v":0},{"$f":"IF(L15=FALSE,0,1)","v":0},null,null,null,null,null,null,{"$f":"IF(OR(K15=TRUE,L15=TRUE),C15,0)","v":0}]
[{"$f":"IF(AND(K16=FALSE,L16=FALSE),\"x\",\"\")","v":"x"},null,"Ausstattung mit Hocheffizienzpumpe",null,null,null,null,{"$f":"VALUE(Q46)","v":0},null,null,false,false,null,0,0,null,null,null,null,null,null,{"$f":"IF(OR(K16=TRUE,L16=TRUE),C16,0)","v":0}]
[null,null,null,null,null,null,null,null,null,null,null,null,"Summe:",{"$f":"SUM(N14:N16)","v":0},{"$f":"SUM(O14:O16)","v":0}]
[{"$f":"IF(AND(K18=\"\",K8=\"Sole/Wasser mit Erdsondenbohrung\"),\"x\",\"\")","v":""},null,"Installation der Erdsonde am",null,null,"(TT.MM.JJJJ)",null,null,null,null,null,{"$f":"DATEVALUE(K18)","v":{"$error":"#VALUE!"}},"2015-04-01",{"$f":"DATEVALUE(\"01.04.2015\")","v":42095},{"$f":"IF(ISERROR(IF(L18<N18,\"Vor 01.04.2015\",IF(L18>N18,\"Nach 01.04.2015\",\"01.04.2015\"))=TRUE),\"\",IF(L18<N18,\"Vor 01.04.2015\",IF(L18>N18,\"Nach 01.04.2015\",\"01.04.2015\")))","v":""},{"$f":"IF(K18=\"\",FALSE,TRUE)","v":false},null,null,null,null,null,{"$f":"IF(P18=TRUE,C18,0)","v":0}]
[{"$f":"IF(AND(K19=FALSE,L19=FALSE,K8=\"Sole/Wasser mit Erdsondenbohrung\"),\"x\",\"\")","v":""},null,"Bohrung nach den Qualitätsanforderungen der Technischen Regel \nDVGW W120-22.1",null,null,null,null,{"$f":"IF(ISERROR(VALUE(Q51)=TRUE),0,VALUE(Q51))","v":0},null,null,false,false,null,{"$f":"IF(K19=TRUE,1,0)","v":0},0,null,null,null,null,null,null,{"$f":"IF(OR(K19=TRUE,L19=TRUE),C19,0)","v":0}]
[null,null,null,null,null,null,null,null,null,null,null,null,null,null,null,null,null,null,null,1]
[null,null,{"$f":"IF(K21=TRUE,\"Innovationsförderung³*\",\"Innovationsförderung³\")","v":"Innovationsförderung³"},null,null,{"$f":"VALUE(H26)","v":0},null,null,null,null,false,false]
[]
[{"$f":"IF(AND(K23=FALSE,L23=FALSE,K21=TRUE),\"x\",\"\")","v":""},null,"Abschluss eines Lieferungs- oder Leistungsvertrages",null,null,null,null,null,null,null,false,false,null,{"$f":"IF(K23=TRUE,1,0)","v":0},{"$f":"IF(L23=TRUE,1,0)","v":0},null,null,null,null,null,null,{"$f":"IF(OR(K23=TRUE,L23=TRUE),C23,0)","v":0}]
[{"$f":"IF(AND(K24=FALSE,L24=FALSE,K21=TRUE),\"x\",\"\")","v":""},null,"Flächenheizung als Wärmeverteilsystem (Fußbodenheizung)",null,null,null,null,null,null,null,false,false,null,{"$f":"IF(K24=TRUE,1,0)","v":0},{"$f":"IF(L24=TRUE,1,0)","v":0},null,null,null,null,null,{"$f":"IF(OR(K8=\"Wasser/Wasser\",K8=\"Sole/Wasser mit Erdsondenbohrung\",K8=\"Sole/Wasser ohne Erdsondenbohrung\"),\"Ergänzender Wärmequelle Luft oder Solarstrahlung\",IF(K8=\"Luft/Wasser\",\"Ergänzende Wärmequelle Solarstrahlung\",\"\"))","v":""},{"$f":"IF(OR(K24=TRUE,L24=TRUE),C24,0)","v":0},null,"³·¹Die ergänzende Wärmequelle soll eine Erhöhung der Wärmequelltemperatur bewirken. Eingesetzte Kollektoren müssen förderfähig sein und ihre Leistung mind. 1/3 der Norm-Heizlast des Gebäudes betragen. Bei Solarkollektoren darf eine Heizleistung von 0,2 kW/m² Kollektorfläche angesetzt werden. Bei ergänzender Wärmequelle Luft ist die Wärmeleistung bei 5°C anzusetzen. System-Jahresarbeitszahl (SJAZ) >=4,3"]
[{"$f":"IF(AND(K25=\"\",K21=TRUE),\"x\",\"\")","v":""},null,"Wärmepumpe in Kombination mit",null,null,null,null,null,null,null,null,null,null,null,null,null,{"$f":"ISTEXT(K25)","v":false},null,null,null,"Eisspeicher",{"$f":"IF(Q25=TRUE,C25,0)","v":0},null,"³·¹Die ergänzende Wärmequelle soll eine Erhöhung der Wärmequelltemperatur bewirken. Eingesetzte Kollektoren müssen förderfähig sein und ihre Leistung mind. 1/3 der Norm-Hiezlast des Gebäudes betragen. Bei Solarkollektoren darf eine Heizleistung von 0,2 kW/m² Kollektorfläche angesetzt werden. Die Bivalenztemperatur darf nicht über -6°C liegen (außer wenn eine Biomasse-Anlage vorhanden ist). Bei (Hybrid-)Wärmepumpen, bei denen die Nutzung eines Heizstabes ausgeschlossen ist, darf der Bivalenzpunkt 0°C nicht überschreiten. SJAZ >=3,9"]
[{"$f":"IF(AND(K26=FALSE,L26=FALSE,K21=TRUE),\"x\",\"\")","v":""},null,"Verbesserte Systemeffizienz durch Wärmepumpe mit zusätzlichen Anlagenteilen bzw. Sonderbauformen3.1",null,null,null,null,{"$f":"VALUE(Q54)","v":0},null,null,false,false,null,{"$f":"IF(K26=TRUE,1,0)","v":0},{"$f":"IF(L26=TRUE,1,0)","v":0},null,null,null,null,null,"Kalte Nahwärme",{"$f":"IF(OR(K26=TRUE,L26=TRUE),C26,0)","v":0},null,"³·¹Der Eisspeicher muss ein Wasservolumen von mind. 0,95 m³/kW thermische Leistung (B0/W35) betragen. Grundsätzlich sind auch andere Speichermedien nötig, eine vergleichbare Speicherkapazität ist nachzuweisen. SJAZ>=4,1"]
[null,null,null,null,null,null,null,null,null,null,null,null,"Summe:",{"$f":"SUM(N25:N26)","v":0},{"$f":"SUM(O25:O26)","v":0},"Summe gesamt",{"$f":"SUM(N27,O27)","v":0},null,null,null,null,null,null,"³·¹Die gemeinschaftliche Wärmequelle muss von mind. 5 Wärmepumpen/Gebäuden genutzt werden. Ihre Temperatur muss immer mind. 10°C betragen"]
[null,null,{"$f":"IF(K28=TRUE,\"Zusatzförderung⁴*\",\"Zusatzförderung⁴\")","v":"Zusatzförderung⁴"},null,null,{"$f":"SUM(H31,H34,H35,H36,H39)","v":0},null,null,null,null,false,false]
[]
[null,null,{"$f":"IF(K30=TRUE,\"Lastmanagementbonus*\",\"Lastmanagementbonus\")","v":"Lastmanagementbonus"},null,null,null,null,null,null,null,false,false,null,null,"l/kW (mind. 30)"]
[{"$f":"IF(AND(K28=TRUE,K30=TRUE,K31=\"\"),\"x\",\"\")","v":""},null,"Speichervolumen Trinkwarmwasserspeicher und Pufferspeicher4.1",null,null,"l",null,{"$f":"VALUE(Q58)","v":0},null,null,null,{"$f":"IF(K31=\"\",FALSE,TRUE)","v":false},null,{"$f":"IF(L31=FALSE,\"\",VALUE(K31))","v":""},{"$f":"N31/N10","v":{"$error":"#VALUE!"}},null,{"$f":"ISNUMBER(N31)","v":false},null,null,null,{"$f":"IF(AND(N31>=0,L31=TRUE),TRUE,FALSE)","v":false},{"$f":"IF(U31=TRUE,C31,0)","v":0}]
[null,null,null,null,null,null,null,null,null,null,null,null,"Summe:",{"$f":"SUM(#REF!)","v":{"$error":"#REF!"}}]
[null,null,{"$f":"IF(K33=TRUE,\"Kombinationsbonus*\",\"Kombinationsbonus\")","v":"Kombinationsbonus"},null,null,null,null,null,null,null,false,false]
[{"$f":"IF(AND(K34=FALSE,L34=FALSE,K28=TRUE,K33=TRUE),\"x\",\"\")","v":""},null,"Gleichzeitige4.2 Errichtung einer förderfähigen Solarkollektor- / Biomassenanlage",null,null,null,null,{"$f":"IF(ISERROR(VALUE(Q59)=TRUE),0,VALUE(Q59))","v":0},null,null,false,false,null,{"$f":"IF(K34=TRUE,1,0)","v":0},null,null,null,null,null,null,null,{"$f":"IF(OR(K34=TRUE,L34=TRUE),C34,0)","v":0}]
[{"$f":"IF(AND(K35=FALSE,L35=FALSE,K28=TRUE,K33=TRUE),\"x\",\"\")","v":""},null,"Gleichzeitige4.2 Errichtung von PVT-Kollektoren4.3 oder andere nicht förderfähige Kollektoren (Leisten Beitrag als Wärmequelle für die Wärmepumpe, Bruttokollektorfläche von mind. 7 m²)",null,null,null,null,{"$f":"IF(ISERROR(VALUE(Q60)=TRUE),0,VALUE(Q60))","v":0},"mind. 7m²",null,false,false,null,0,null,null,null,null,null,null,null,{"$f":"IF(OR(K35=TRUE,L35=TRUE),C35,0)","v":0}]
[{"$f":"IF(AND(K36=FALSE,L36=FALSE,K28=TRUE,K33=TRUE),\"x\",\"\")","v":""},null,"Anschluss an ein Wärmenetz (Versorgung von mindestens einem weiteren Gebäude außer dem Gebäude des Anlagenbetreibers mit Wärme)",null,null,null,null,{"$f":"IF(ISERROR(VALUE(Q61)=TRUE),0,VALUE(Q61))","v":0},null,null,false,false,null,0,null,null,null,null,null,null,null,{"$f":"IF(OR(K36=TRUE,L36=TRUE),C36,0)","v":0}]
[null,null,null,null,null,null,null,null,null,null,false,false,"Summe:",{"$f":"SUM(N34:N36)","v":0}]
[null,null,{"$f":"IF(AND(K38=TRUE,N7=1),\"Gebäudeeffizienzbonus*\",\"Gebäudeeffizienzbonus\")","v":"Gebäudeeffizienzbonus"},null,null,null,null,null,null,null,false,false]
[{"$f":"IF(AND(K39=FALSE,L39=FALSE,N7=1,K28=TRUE,K38=TRUE),\"x\",\"\")","v":""},null,"KfW-Effizienzhaus 55",null,null,null,null,{"$f":"IF(ISERROR(VALUE(Q62)=TRUE),0,VALUE(Q62))","v":0},null,null,false,false,"Summe:",{"$f":"IF(K39=TRUE,1,0)","v":0},null,null,null,null,null,null,null,{"$f":"IF(OR(K39=TRUE,L39=TRUE),C39,0)","v":0}]
[null,null,null,null,null,null,null,null,null,null,null,null,"Summe:"]
[null,null,null,null,null,null,null,null,null,null,null,null,"Summe:",{"$f":"SUM(#REF!)","v":{"$error":"#REF!"}}]
[null,null,null,null,null,null,null,null,null,null,false,false]
[]
[null,null,"*Pflichtfelder",null,null,null,null,null,null,null,null,null,null,"Luft/Wasser oder Wasser/Wasser oder Sole/Wasser ohne Erdsondenbohrung",{"$f":"IF(OR(AND(N7=1,OR(K8=\"Sole/Wasser ohne Erdsondenbohrung\",K8=\"Wasser/Wasser\"),N10<=100,N11>=3.8,N6=1,N17=3),AND(N7=1,OR(K8=\"Sole/Wasser ohne Erdsondenbohrung\",K8=\"Wasser/Wasser\"),N10<=100,N11>=4,N6=0,N17=3),AND(N7=1,K8=\"Luft/Wasser\",N10<=100,N11>=3.5,N17=3)),\"Förderung möglich\",\"Förderung nicht möglich\")","v":"Förderung nicht möglich"},"Basisförderung",{"$f":"IF(OR(AND(O44=\"Förderung möglich\",K8=\"Sole/Wasser ohne Erdsondenbohrung\"),AND(O44=\"Förderung möglich\",K8=\"Wasser/Wasser\")),N10*100,IF(AND(O44=\"Förderung möglich\",K8=\"Luft/Wasser\"),40*N10,0))","v":0}]
[null,null,"¹Gebäudebestand: Zu dem Zeitpunkt der Inbetriebnahme der beantragten Anlage wurde seit mehr als 2 Jahren ein anderes Heizungs- oder Kühlsystem installiert",null,null,null,null,null,null,null,null,null,null,null,null,"Mindestförderung",{"$f":"IF(OR(AND(O44=\"Förderung möglich\",K8=\"Sole/Wasser ohne Erdsondenbohrung\"),AND(O44=\"Förderung möglich\",K8=\"Wasser/Wasser\")),4000,IF(AND(O44=\"Förderung möglich\",K8=\"Luft/Wasser\"),1500,0))","v":0}]
[null,null,"²Berechnung der JAZ nach der VDI 4650 nach bwp-Rechner; Mindestvoraussetzung Basisförderung: 3,5 (Luft/Wasser), 3,8 (Sole/Wasser oder Wasser/Wasser, Wohngebäude), 4,0 (Sole/Wasser oder Wasser/Wasser, Nichtwohngebäude); Mindestvoraussetzung Innovationsfördung: 4,5",null,null,null,null,null,null,null,null,null,null,null,null,"Förderung Basis",{"$f":"IF(Q44>=Q45,Q44,Q45)","v":0}]
[null,null,"2.1Für die Bohrung muss eines verschuldungsunabhängige Versicherung abgeschlossen sein, zum Beispiel durch Hörtkorn geothermic",null,null,null,null,null,null,null,null,null,"ab 01.04.2015","Sole/Wasser mit Erdsondenbohrung",{"$f":"IF(OR(AND(N7=1,K8=\"Sole/Wasser mit Erdsondenbohrung\",N10<=100,N11>=3.8,N6=1,N17=3,N19=1,OR(O18=\"Nach 01.04.2015\",O18=\"01.04.2015\")),AND(N7=1,K8=\"Sole/Wasser mit Erdsondenbohrung\",N10<=100,N11>=4,N6=0,N17=3,N19=1,OR(O18=\"Nach 01.04.2015\",O18=\"01.04.2015\"))),\"Förderung möglich\",\"Förderung nicht möglich\")","v":"Förderung nicht möglich"},"Basisförderung",{"$f":"IF(O47=\"Förderung möglich\",100*N10,0)","v":0}]
[null,null,"3Voraussetzung ist eine verbesserte Systemeffizienz oder eine erhöhte JAZ der beantragten Wärmepumpe von mind. 4,5",null,null,null,null,null,null,null,null,null,null,null,null,"Mindestförderung",{"$f":"IF(O47=\"Förderung möglich\",4500,0)","v":0}]
[null,null,{"$f":"IF(K25=\"Ergänzender Wärmequelle Luft oder Solarstrahlung\",X24,IF(K25=\"Ergänzende Wärmequelle Solarstrahlung\",X25,IF(K25=\"Eisspeicher\",X26,IF(K25=\"Kalte Nahwärme\",X27,\"\"))))","v":""},null,null,null,null,null,null,null,false,false,"vor 01.04.2015 ","Sole/Wasser mit Erdsondenbohrung",{"$f":"IF(OR(AND(N7=1,K8=\"Sole/Wasser mit Erdsondenbohrung\",N10<=100,N11>=3.8,N6=1,N17=3,O18=\"Vor 01.04.2015\"),AND(N7=1,K8=\"Sole/Wasser mit Erdsondenbohrung\",N10<=100,N11>=4,N6=0,N17=3,O18=\"Vor 01.04.2015\")),\"Förderung möglich\",\"Förderung nicht möglich\")","v":"Förderung nicht möglich"},"Basisförderung",{"$f":"IF(O49=\"Förderung möglich\",100*N10,0)","v":0}]
[null,null,"4Die verschiedenen Zusatzförderungen können zusätzlich zur Basis- und Innovationsförderung gewährt werden und sind miteinander kumulierbar. Ausnahme: Gebäudeeffizienzbonus und Optimierungsmaßnahme nur im Gebäudebestand",null,null,null,null,null,null,null,false,false,null,null,null,"Mindestförderung",{"$f":"IF(AND(O49=\"Förderung möglich\",N19=1),4500,IF(AND(O49=\"Förderung möglich\",N19=0),4000,0))","v":0}]
[null,null,"4.1Heizspeicher oder Trinkwasserspeicher, mind. 30 l/kW für Lastmanagementbonus                --> ",null,"aktuell (in l/kW):",{"$f":"IF(ISERROR(VALUE(O31)=TRUE),0,VALUE(O31))","v":0},null,null,null,null,false,false,null,null,null,"Förderung Basis Sole mit Bohrung",{"$f":"MAX(Q47,Q48,Q49,Q50)","v":0}]
[null,null,"4.2Gleichzeitigkeit: Die beiden Anlagen werden innerhalb eines max. Zeitrahmens von 9 Monaten in Betrieb genommen",null,null,null,null,null,null,null,null,null,null,null,"Innovationsförderung",null,{"$f":"IF(AND(O23=1,N10<=100,K8=\"Wasser/Wasser\",N7=1,OR(AND(N11>=4.5,N26=0),AND(N26=1,N11>=3.8,N6=1),AND(N26=1,N11>=4,N6=0)),N17=3,N24=1),0.5*Q46,IF(AND(O23=1,N10<=100,K8=\"Wasser/Wasser\",N7=0,OR(AND(N11>=4.5,N26=0),AND(N26=1,N11>=3.8,N6=1),AND(N26=1,N11>=4,N6=0)),N17=3,N24=1),Q72,IF(AND(O23=1,N10<=100,K8=\"Sole/Wasser ohne Erdsondenbohrung\",N7=1,OR(AND(N11>=4.5,N26=0),AND(N26=1,N11>=3.8,N6=1),AND(N26=1,N11>=4,N6=0)),N17=3,N24=1),0.5*Q46,IF(AND(O23=1,N10<=100,K8=\"Sole/Wasser ohne Erdsondenbohrung\",N7=0,OR(AND(N11>=4.5,N26=0),AND(N26=1,N11>=3.8,N6=1),AND(N26=1,N11>=4,N6=0)),N17=3,N24=1),Q72,IF(AND(O23=1,N10<=100,K8=\"Sole/Wasser mit Erdsondenbohrung\",N7=1,OR(AND(N11>=4.5,N26=0),AND(N26=1,N11>=3.8,N6=1),AND(N26=1,N11>=4,N6=0)),N17=3,N24=1),0.5*Q51,IF(AND(O23=1,N10<=100,K8=\"Sole/Wasser mit Erdsondenbohrung\",N7=0,OR(AND(N11>=4.5,N26=0),AND(N26=1,N11>=3.8,N6=1),AND(N26=1,N11>=4,N6=0)),N17=3,N24=1),Q77,IF(AND(O23=1,N10<=100,K8=\"Luft/Wasser\",N7=1,OR(AND(N11>=4.5,N26=0),AND(N26=1,N11>=3.5)),N17=3,N24=1),0.5*Q46,IF(AND(O23=1,N10<=100,K8=\"Luft/Wasser\",N7=0,OR(AND(N11>=4.5,N26=0),AND(N26=1,N11>=3.5)),N17=3,N24=1),Q72,0))))))))","v":0}]
[null,null,"4.3PVT-Kollektoren: Photovoltaisch-thermische Kollektoren (kobinierte Photovoltaik-Solarthermie-Kollektoren)",null,null,null,null,null,null,null,null,null,null,null,null,"Mindestförderung",{"$f":"IF(AND(K8=\"Luft/Wasser\",N7=1,Q52>0,Q52<750),750,IF(AND(K8=\"Luft/Wasser\",N7=0,Q52>0,Q52<1500),1500,IF(AND(K8=\"Sole/Wasser ohne Erdsondenbohrung\",N7=1,Q52>0,Q52<2000),2000,IF(AND(K8=\"Sole/Wasser ohne Erdsondenbohrung\",N7=0,Q52>0,Q52<4000),4000,IF(AND(O18=\"Nach 01.04.2015\",N19=1,K8=\"Sole/Wasser mit Erdsondenbohrung\",N7=1,Q52>0,Q52<2250),2250,IF(AND(O18=\"Nach 01.04.2015\",N19=1,K8=\"Sole/Wasser mit Erdsondenbohrung\",N7=0,Q52>0,Q52<4500),4500,IF(AND(O18=\"Vor 01.04.2015\",N19=1,K8=\"Sole/Wasser mit Erdsondenbohrung\",N7=1,Q52>0,Q52<2250),2250,IF(AND(O18=\"Vor 01.04.2015\",N20=1,K8=\"Sole/Wasser mit Erdsondenbohrung\",N7=1,Q52>0,Q52<2000),2000,IF(AND(O18=\"Vor 01.04.2015\",N20=1,K8=\"Sole/Wasser mit Erdsondenbohrung\",N7=0,Q52>0,Q52<4000),4000,IF(AND(O18=\"Vor 01.04.2015\",N19=1,K8=\"Sole/Wasser mit Erdsondenbohrung\",N7=0,Q52>0,Q52<4500),4500,IF(AND(K8=\"Wasser/Wasser\",N7=1,Q52>0,Q52<2000),2000,IF(AND(K8=\"Wasser/Wasser\",N7=0,Q52>0,Q52<4000),4000,0))))))))))))","v":0}]
[null,null,null,null,null,null,null,null,null,null,null,null,null,null,null,"Innovationsförderung gesamt",{"$f":"MAX(Q52,Q53)","v":0}]
[null,null,null,null,null,null,null,null,null,null,null,null,null,null,null,"Förderung Basis/Innovation",{"$f":"SUM(MAX(Q46,Q51),Q54)","v":0}]
[]
[null,null,null,null,null,null,null,null,null,null,null,null,null,null,"Zusatzförderung"]
[null,null,null,null,null,null,null,null,null,null,null,null,null,null,"Lastmanagementbonus",null,{"$f":"IF(ISERROR(IF(AND(O31>=30,Q55>0),500,0)=TRUE),0,IF(AND(O31>=30,Q55>0),500,0))","v":0}]
[null,null,null,null,null,null,null,null,null,null,null,null,null,null,"Kombinationsbonus","Solarkollektoranlage, Biomasseanlage",{"$f":"IF(AND(Q55>0,N34=1),500,0)","v":0}]
[null,null,null,null,null,null,null,null,null,null,null,null,null,null,null,"PVT-Kollektoren",{"$f":"IF(AND(Q55>0,N35=1),500,0)","v":0}]
[null,null,null,null,null,null,null,null,null,null,null,null,null,null,null,"Wärmenetz",{"$f":"IF(AND(Q55>0,N36=1),500,0)","v":0}]
[null,null,null,null,null,null,null,null,null,null,null,null,null,null,"Gebäudeeffizienzbonus",null,{"$f":"IF(AND(N6=1,N7=1,Q55>0,N39=1),0.5*Q55,0)","v":0}]
[null,null,null,null,null,null,null,null,null,null,null,null,null,null,"Zusatzförderung gesamt",null,{"$f":"SUM(Q58,Q59,Q60,Q61,Q62)","v":0}]
[]
[null,null,null,null,null,null,null,null,null,null,null,null,null,null,"Förderung gesamt",null,{"$f":"SUM(Q55,Q63)","v":0}]
[]
[]
[]
[]
[null,null,null,null,null,null,null,null,null,null,null,null,"ohne Gebäudebestand","Luft/Wasser oder Wasser/Wasser oder Sole/Wasser ohne Erdsondenbohrung",{"$f":"IF(OR(AND(OR(K8=\"Sole/Wasser ohne Erdsondenbohrung\",K8=\"Wasser/Wasser\"),N10<=100,N11>=3.8,N6=1,N17=3),AND(OR(K8=\"Sole/Wasser ohne Erdsondenbohrung\",K8=\"Wasser/Wasser\"),N10<=100,N11>=4,N6=0,N17=3),AND(K8=\"Luft/Wasser\",N10<=100,N11>=3.5,N17=3)),\"Förderung möglich\",\"Förderung nicht möglich\")","v":"Förderung nicht möglich"},"Basisförderung",{"$f":"IF(OR(AND(O70=\"Förderung möglich\",K8=\"Sole/Wasser ohne Erdsondenbohrung\"),AND(O70=\"Förderung möglich\",K8=\"Wasser/Wasser\")),N36*100,IF(AND(O70=\"Förderung möglich\",K8=\"Luft/Wasser\"),40*N10,0))","v":0}]
[null,null,null,null,null,null,null,null,null,null,null,null,null,null,null,"Mindestförderung",{"$f":"IF(OR(AND(O70=\"Förderung möglich\",K8=\"Sole/Wasser ohne Erdsondenbohrung\"),AND(O70=\"Förderung möglich\",K8=\"Wasser/Wasser\")),4000,IF(AND(O70=\"Förderung möglich\",K8=\"Luft/Wasser\"),1500,0))","v":0}]
[null,null,null,null,null,null,null,null,null,null,null,null,null,null,null,"Förderung Basis",{"$f":"IF(Q70>=Q71,Q70,Q71)","v":0}]
[null,null,null,null,null,null,null,null,null,null,null,null,"ab 1.4.15","Sole/Wasser mit Erdsondenbohrung",{"$f":"IF(OR(AND(K8=\"Sole/Wasser mit Erdsondenbohrung\",N10<=100,N11>=3.8,N6=1,N17=3,N19=1,OR(O18=\"Nach 01.04.2015\",O18=\"01.04.2015\")),AND(K8=\"Sole/Wasser mit Erdsondenbohrung\",N10<=100,N11>=4,N6=0,N17=3,N19=1,OR(O18=\"Nach 01.04.2015\",O18=\"01.04.2015\"))),\"Förderung möglich\",\"Förderung nicht möglich\")","v":"Förderung nicht möglich"},"Basisförderung",{"$f":"IF(O73=\"Förderung möglich\",100*N10,0)","v":0}]
[null,null,null,null,null,null,null,null,null,null,null,null,null,null,null,"Mindestförderung",{"$f":"IF(O73=\"Förderung möglich\",4500,0)","v":0}]
[null,null,null,null,null,null,null,null,null,null,null,null,"vor 1.4","Sole/Wasser mit Erdsondenbohrung",{"$f":"IF(OR(AND(K8=\"Sole/Wasser mit Erdsondenbohrung\",N10<=100,N11>=3.8,N6=1,N17=3,O18=\"Vor 01.04.2015\"),AND(K8=\"Sole/Wasser mit Erdsondenbohrung\",N10<=100,N11>=4,N6=0,N17=3,O18=\"Vor 01.04.2015\")),\"Förderung möglich\",\"Förderung nicht möglich\")","v":"Förderung nicht möglich"},"Basisförderung",{"$f":"IF(O75=\"Förderung möglich\",100*N10,0)","v":0}]
[null,null,null,null,null,null,null,null,null,null,null,null,null,null,null,"Mindestförderung",{"$f":"IF(AND(O75=\"Förderung möglich\",N19=1),4500,IF(AND(O75=\"Förderung möglich\",N19=0),4000,0))","v":0}]
[null,null,null,null,null,null,null,null,null,null,null,null,null,null,null,"Förderung Basis Sole mit Erdsondenbohrung",{"$f":"MAX(Q73,Q74,Q75,Q76)","v":0}]

{"sheet":"Checkliste BAFA-Antrag WP","index":1,"n_rows":64,"n_cols":26,"rows_kept":64,"cut":false,"hidden":false,"merged":[[3,4,3,5],[60,2,60,5],[105,12,107,12],[105,13,107,13],[57,13,59,13],[62,13,63,13],[65,13,67,13],[68,13,69,13],[93,12,94,12],[93,13,95,13],[61,2,61,5],[4,4,4,5],[59,2,59,5],[19,3,19,5],[25,3,25,5],[36,3,36,5],[40,3,40,5],[50,3,50,5],[43,3,43,5],[46,3,46,5],[108,13,109,13],[96,13,97,13],[99,13,101,13],[102,13,103,13],[51,8,51,9],[57,12,59,12]]}
[null,null,"Checkliste zur \nFörderung von Wärmepumpen"]
[null,null,{"$f":"IF(OR(O16>0,AND(O19>0,'Allgemeine Angaben WP'!K8=\"Sole/Wasser mit Erdsondenbohrung\")),\"ACHTUNG: Bei ''Allgemeine Fördervoraussetzunge'' muss alles mit Ja beantwortet werden, sonst keine Förderung!\",\"\")","v":""},null,"Fehlende Angaben:",{"$f":"COUNTIF(A4:A54,\"x\")","v":8},null,null,null,null,"ACHTUNG: Bei ''Allgemeine Fördervoraussetzunge'' muss alles mit Ja beantwortet werden, sonst keine Förderung!",null,null,null,null,null,null,null,"Antragsformulare und Bemerkungen"]
[null,null,"Allgemeine Angaben"]
[null,null,"Einsatzbereich",null,{"$f":"IF('Allgemeine Angaben WP'!K7=TRUE,\"Gebäudebestand\",IF('Allgemeine Angaben WP'!L7=TRUE,\"Neubau\",\"\"))","v":""},null,null,null,null,null,{"$f":"IF(E4=\"Gebäudebestand\",1,IF(E4=\"Neubau\",0,\"\"))","v":""},null,null,null,null,null,null,null,null,null,null,null,null,null,null,"Luft/Wasser"]
[null,null,"Art der Wärmepumpe",null,{"$f":"IF('Allgemeine Angaben WP'!K8=\"Luft/Wasser\",\"Luft/Wasser\",IF('Allgemeine Angaben WP'!K8=\"Sole/Wasser ohne Erdsondenbohrung\",\"Sole/Wasser ohne Erdsondenbohrung\",IF('Allgemeine Angaben WP'!K8=\"Sole/Wasser mit Erdsondenbohrung\",\"Sole/Wasser mit Erdsondenbohrung\",IF('Allgemeine Angaben WP'!K8=\"Wasser/Wasser\",\"Wasser/Wasser\",\"\"))))","v":""},null,null,null,null,null,{"$f":"E5","v":""},null,null,null,null,null,null,null,null,null,null,null,null,null,null,"Sole/Wasser ohne Erdsondenbohrung"]
[null,null,null,null,null,null,null,null,null,null,null,null,null,null,null,null,null,null,null,null,null,null,null,null,null,"Sole/Wasser mit Erdsondenbohrung"]
[null,null,"Allgemeine Fördervoraussetzungen*",null,null,null,null,null,null,null,null,null,null,null,null,null,null,null,null,null,null,null,null,null,null,"Wasser/Wasser"]
[{"$f":"IF(AND(K8=FALSE,L8=FALSE),\"x\",\"\")","v":"x"},null,"Nachweis der JAZ (nach VDI 4650)1",null,null,null,null,null,null,null,false,false,null,{"$f":"IF(K8=TRUE,1,0)","v":0},0,null,{"$f":"IF(OR(K8=TRUE,L8=TRUE),C8,0)","v":0}]
["x",null,"Ausgefüllte Bestätigung des Hydraulischen Abgleichs²",null,null,null,null,null,null,null,false,false,null,0,0,null,0]
["x",null,"Nachweis Anpassung der Heizkurve der Heizungsanlage",null,null,null,null,null,null,null,false,false,null,0,0,null,0]
["x",null,"Prüfbericht eines unabhängigen Prüfinstituts über COP-Werte / Auf Grundlage des EHPA-Wärmepumpen-Gütesiegels",null,null,null,null,null,null,null,false,false,null,0,0,null,0]
["x",null,"COP-Werte müssen Mindestwerte gem. dem europäischen Umweltzeichen \"Euroblume\" / EHPA einhalten³",null,null,null,null,null,null,null,false,false,null,0,0,null,0]
["x",null,"Prüfbericht eines unabhängigen Prüfinstituts über die Nennwärmeleistung",null,null,null,null,null,null,null,false,false,null,0,0,null,0]
["x",null,"Nachweis über den Einbau mindestens eines Wärmemengenzählers",null,null,null,null,null,null,null,false,false,null,0,0,null,0]
["x",null,"Nachweis über den Einbau mindestens eines Stromzählers",null,null,null,null,null,null,null,false,false,null,0,0,null,0]
[null,null,null,null,null,null,null,null,null,null,false,false,"Summe:",{"$f":"SUM(N8:N15)","v":0},{"$f":"SUM(O8:O15)","v":0}]
[{"$f":"IF(AND(K17=FALSE,L17=FALSE,E5=\"Sole/Wasser mit Erdsondenbohrung\"),\"x\",\"\")","v":""},null,"Nachweis über Bohrung nach den Qualitätsanforderungen der Technischen Regel DVGW W120-24",null,null,null,null,null,null,null,false,false,null,{"$f":"IF(K17=TRUE,1,0)","v":0},0,null,{"$f":"IF(OR(K17=TRUE,L17=TRUE),C17,0)","v":0}]
[{"$f":"IF(AND(K18=FALSE,L18=FALSE,E5=\"Sole/Wasser mit Erdsondenbohrung\"),\"x\",\"\")","v":""},null,"Bei Bohrung Abschluss einer verschuldungsunabhängigen Versicherung4",null,null,null,null,null,null,null,false,false,null,0,0,null,{"$f":"IF(OR(K18=TRUE,L18=TRUE),C18,0)","v":0}]
[null,null,null,null,null,null,null,null,null,null,false,false,"Summe:",{"$f":"SUM(N17:N18)","v":0},{"$f":"SUM(O17:O18)","v":0}]
[null,null,{"$f":"IF(K4=1,\"Fördervoraussetzungen Basisförderung*\",\"Fördervoraussetzungen Basisförderung\")","v":"Fördervoraussetzungen Basisförderung"},{"$f":"IF(OR(AND(N16=8,N25=4,K4=1,OR(K5=\"Luft/Wasser\",K5=\"Sole/Wasser ohne Erdsondenbohrung\",K5=\"Wasser/Wasser\")),AND(K5=\"Sole/Wasser mit Erdsondenbohrung\",N20=10,N25=4,K4=1)),\"Basisförderung möglich\",IF(OR(AND(OR(O16>0,O25>0,O4>0),OR(K5=\"Luft/Wasser\",K5=\"Sole/Wasser ohne Erdsondenbohrung\",K5=\"Wasser/Wasser\")),AND(K5=\"Sole/Wasser mit Erdsondenbohrung\",OR(O20>0,O25>0,O4>0))),\"Basisförderung nicht möglich\",\"\"))","v":""},null,null,null,null,null,null,null,null,"Summe für Erdsondenbohrung:",{"$f":"SUM(N16,N19)","v":0},{"$f":"SUM(O16,O19)","v":0}]
[{"$f":"IF(AND(K21=FALSE,L21=FALSE,K4=1),\"x\",\"\")","v":""},null,"Rechnung über installierte Anlage und Bestandteile in Kopie",null,null,null,null,null,null,null,false,false,null,{"$f":"IF(K21=TRUE,1,0)","v":0},0,null,{"$f":"IF(OR(K21=TRUE,L21=TRUE),C21,0)","v":0}]
[{"$f":"IF(AND(K22=FALSE,L22=FALSE,K4=1),\"x\",\"\")","v":""},null,"Ausgefülltes und eigenhändig unterschriebenes Antragsformular¹",null,null,null,null,null,null,null,false,false,null,0,0,null,{"$f":"IF(OR(K22=TRUE,L22=TRUE),C22,0)","v":0}]
[{"$f":"IF(AND(K23=FALSE,L23=FALSE,K4=1),\"x\",\"\")","v":""},null,"Ausgefüllte und vom Fachunternehmer unterschriebene Fachunternehmererklärung¹",null,null,null,null,null,null,null,false,false,null,0,0,null,{"$f":"IF(OR(K23=TRUE,L23=TRUE),C23,0)","v":0}]
[{"$f":"IF(AND(K24=FALSE,L24=FALSE,K4=1),\"x\",\"\")","v":""},null,"Antragsformular und Fachunternehmererklärung liegen der BAFA vor (spätestens 9 Monate nach der Inbetriebnahme)",null,null,null,null,null,null,null,false,false,null,0,0,null,{"$f":"IF(OR(K24=TRUE,L24=TRUE),C24,0)","v":0}]
[null,null,null,null,null,null,null,null,null,null,false,false,"Summe:",{"$f":"SUM(N21:N24)","v":0},{"$f":"SUM(O21:O24)","v":0}]
[null,null,{"$f":"IF('Allgemeine Angaben WP'!K21=TRUE,\"Fördervoraussetzungen Innovationsförderung*\",\"Fördervoraussetzungen Innovationsförderung\")","v":"Fördervoraussetzungen Innovationsförderung"},{"$f":"IF(OR(AND(N16=8,N33=6,OR(K5=\"Luft/Wasser\",K5=\"Sole/Wasser ohne Erdsondenbohrung\",K5=\"Wasser/Wasser\")),AND(K5=\"Sole/Wasser mit Erdsondenbohrung\",N20=10,N33=6)),\"Innovationsförderung möglich\",IF(OR(AND(OR(O16>0,O33>0),OR(K5=\"Luft/Wasser\",K5=\"Sole/Wasser ohne Erdsondenbohrung\",K5=\"Wasser/Wasser\")),AND(K5=\"Sole/Wasser mit Erdsondenbohrung\",OR(O20>0,O33>0))),\"Innovationsförderung nicht möglich\",\"\"))","v":""}]
[{"$f":"IF(AND(K27=FALSE,L27=FALSE,'Allgemeine Angaben WP'!K21=TRUE),\"x\",\"\")","v":""},null,"Fachunternehmererklärung über erhöhte JAZ / verbesserte Systemeffizienz",null,null,null,null,null,null,null,false,false,null,{"$f":"IF(K27=TRUE,1,0)","v":0},{"$f":"IF(L27=TRUE,1,0)","v":0},null,{"$f":"IF(OR(K27=TRUE,L27=TRUE),C27,0)","v":0}]
[{"$f":"IF(AND(K28=FALSE,L28=FALSE,'Allgemeine Angaben WP'!K21=TRUE),\"x\",\"\")","v":""},null,"Vertragliche Leistung, dass Qualitätscheck der Wärmepumpe nach einem Jahr nach Inbetriebnahme durchgeführt werden muss (Vergleich der JAZ)",null,null,null,null,{"$f":"VALUE('Checkliste BAFA-Antrag WP'!H34)","v":0},null,null,false,false,null,{"$f":"IF(K28=TRUE,1,0)","v":0},0,null,0]
[{"$f":"IF(AND(K29=FALSE,L29=FALSE,'Allgemeine Angaben WP'!K21=TRUE),\"x\",\"\")","v":""},null,"Vorlage eines detailierten Angebotes5",null,null,null,null,null,null,null,false,false,null,{"$f":"IF(K29=TRUE,1,0)","v":0},0,null,0]
[{"$f":"IF(AND(K30=FALSE,L30=FALSE,'Allgemeine Angaben WP'!K21=TRUE),\"x\",\"\")","v":""},null,"Vorlage eines detaillierten Anlagen-Schemas (Hydraulik)5",null,null,null,null,null,null,null,false,false,null,0,0,null,0]
[{"$f":"IF(AND(K31=FALSE,L31=FALSE,'Allgemeine Angaben WP'!K21=TRUE),\"x\",\"\")","v":""},null,"Vorlage des mit Hilfe des Fachunternehmers ausgefüllten Antragsvordrucks2/5",null,null,null,null,null,null,null,false,false,null,0,0,null,0]
[{"$f":"IF(AND(K32=FALSE,L32=FALSE,'Allgemeine Angaben WP'!K21=TRUE),\"x\",\"\")","v":""},null,"Beantragte Maßnahme muss nach neun Monaten nach Erhalt des Zuwendungsbescheides abgeschlossen sein",null,null,null,null,null,null,null,false,false,null,0,0,null,0]
[null,null,null,null,null,null,null,null,null,null,false,false,"Summe:",{"$f":"SUM(N27:N32)","v":0},{"$f":"SUM(O27:O32)","v":0}]
[null,null,"Fördervoraussetzungen Zusatzförderung ",null,null,null,null,null,null,null,false,false]
[{"$f":"IF(AND(K35=FALSE,L35=FALSE,'Allgemeine Angaben WP'!K28=TRUE),\"x\",\"\")","v":""},null,{"$f":"IF('Allgemeine Angaben WP'!K28=TRUE,\"Unterlagen liegen spätestens 9 Monate nach der Inbetriebnahme/Optimierung vor*\",\"Unterlagen liegen spätestens 9 Monate nach der Inbetriebnahme/Optimierung vor\")","v":"Unterlagen liegen spätestens 9 Monate nach der Inbetriebnahme/Optimierung vor"},null,null,null,null,null,null,null,false,false,"Summe:",{"$f":"IF(K35=TRUE,1,0)","v":0},{"$f":"IF(L35=TRUE,1,0)","v":0},null,{"$f":"IF(OR(K35=TRUE,L35=TRUE),C35,0)","v":0}]
[null,null,null,null,null,null,null,null,null,null,false,false]
[null,null,{"$f":"IF('Allgemeine Angaben WP'!K30=TRUE,\"Lastmanagementbonus*\",\"Lastmanagementbonus\")","v":"Lastmanagementbonus"},{"$f":"IF(AND(N35=1,OR(D20=\"Basisförderung möglich\",D26=\"Innovationsförderung möglich\"),N38=1),\"Bonus möglich\",IF(OR(O35=1,O38=1,AND(D20=\"Basisförderung nicht möglich\",D26=\"Innovationsförderung nicht möglich\")),\"Bonus nicht möglich\",\"\"))","v":""},null,null,null,null,null,null,false,false]
[{"$f":"IF(AND(K38=FALSE,L38=FALSE,'Allgemeine Angaben WP'!K30=TRUE),\"x\",\"\")","v":""},null,"Smart Grid Ready Label vorhanden",null,null,null,null,null,null,null,false,false,"Summe:",{"$f":"IF(K38=TRUE,1,0)","v":0},0,null,{"$f":"IF(OR(K38=TRUE,L38=TRUE),C38,0)","v":0}]
[null,null,null,null,null,null,null,null,null,null,false,false]
[null,null,"Kombinationsbonus"]
[null,null,{"$f":"IF('Allgemeine Angaben WP'!K34=TRUE,\"Errichtung einer weiteren förderfähigen Anlage (Solarthermie, Biomasse)*\",\"Errichtung einer weiteren förderfähigen Anlage (Solarthermie, Biomasse)\")","v":"Errichtung einer weiteren förderfähigen Anlage (Solarthermie, Biomasse)"},{"$f":"IF(AND(N35=1,N44=2,OR(D20=\"Basisförderung möglich\",D26=\"Innovationsförderung möglich\")),\"Bonus möglich\",IF(OR(O35=1,O44>0,AND(D20=\"Basisförderung nicht möglich\",D26=\"Innovationsförderung nicht möglich\")),\"Bonus nicht möglich\",\"\"))","v":""}]
[{"$f":"IF(AND(K42=FALSE,L42=FALSE,'Allgemeine Angaben WP'!K33=TRUE),\"x\",\"\")","v":""},null,"Beide Anlagen werden innerhalb eines max. Zeitrahmens von 9 Monaten in Betrieb genommen",null,null,null,null,null,null,null,false,false,null,{"$f":"IF(K42=TRUE,1,0)","v":0},0,null,{"$f":"IF(OR(K42=TRUE,L42=TRUE),C42,0)","v":0}]
[{"$f":"IF(AND(K43=FALSE,L43=FALSE,'Allgemeine Angaben WP'!K33=TRUE),\"x\",\"\")","v":""},null,"Eigener und vollständiger Förderantrag",null,null,null,null,null,null,null,false,false,null,0,0,null,{"$f":"IF(OR(K43=TRUE,L43=TRUE),C43,0)","v":0}]
[null,null,{"$f":"IF('Allgemeine Angaben WP'!K35=TRUE,\"Errichtung von PVT-Kollektoren6 oder andere nicht förderfähige Kollektoren*\",\"Errichtung von PVT-Kollektoren6 oder andere nicht förderfähige Kollektoren\")","v":"Errichtung von PVT-Kollektoren6 oder andere nicht förderfähige Kollektoren"},{"$f":"IF(AND(N35=1,N47=2,OR(D20=\"Basisförderung möglich\",D26=\"Innovationsförderung möglich\")),\"Bonus möglich\",IF(OR(O35=1,O47>0,AND(D20=\"Basisförderung nicht möglich\",D26=\"Innovationsförderung nicht möglich\")),\"Bonus nicht möglich\",\"\"))","v":""},null,null,null,null,null,null,false,false,"Summe:",{"$f":"SUM(N42:N43)","v":0},{"$f":"SUM(O42:O43)","v":0}]
[{"$f":"IF(AND(K45=FALSE,L45=FALSE,'Allgemeine Angaben WP'!K35=TRUE),\"x\",\"\")","v":""},null,"Beide Anlagen werden innerhalb eines max. Zeitrahmens von 9 Monaten in Betrieb genommen",null,null,null,null,null,null,null,false,false,null,0,0,null,{"$f":"IF(OR(K45=TRUE,L45=TRUE),C45,0)","v":0}]
[{"$f":"IF(AND(K46=FALSE,L46=FALSE,'Allgemeine Angaben WP'!K35=TRUE),\"x\",\"\")","v":""},null,"Eigener und vollständiger Förderantrag",null,null,null,null,null,null,null,false,false,null,0,0,null,{"$f":"IF(OR(K46=TRUE,L46=TRUE),C46,0)","v":0}]
[null,null,{"$f":"IF('Allgemeine Angaben WP'!K36=TRUE,\"Anschluss der Wärmepumpe an ein Wärmennetz*\",\"Anschluss der Wärmepumpe an ein Wärmennetz\")","v":"Anschluss der Wärmepumpe an ein Wärmennetz"},{"$f":"IF(AND(N35=1,N50=2,OR(D20=\"Basisförderung möglich\",D26=\"Innovationsförderung möglich\")),\"Bonus möglich\",IF(OR(O35=1,O50>0,AND(D20=\"Basisförderung nicht möglich\",D26=\"Innovationsförderung nicht möglich\")),\"Bonus nicht möglich\",\"\"))","v":""},null,null,null,null,null,null,false,false,"Summe:",{"$f":"SUM(N45:N46)","v":0},{"$f":"SUM(O45:O46)","v":0}]
[{"$f":"IF(AND(K48=FALSE,L48=FALSE,'Allgemeine Angaben WP'!K36=TRUE),\"x\",\"\")","v":""},null,"Rechnungsnachweis über Übergabestation an das Wärmenetz/Anlagenschema",null,null,null,null,null,null,null,false,false,null,0,0,null,{"$f":"IF(OR(K48=TRUE,L48=TRUE),C48,0)","v":0}]
[{"$f":"IF(AND(K49=FALSE,L49=FALSE,'Allgemeine Angaben WP'!K36=TRUE),\"x\",\"\")","v":""},null,"Angabe im Antragsformular oder Fachunternehmererklärung, dass die Wärmepumpe hydraulisch an ein Wärmenetz angeschlossen wurde",null,null,null,null,null,null,null,false,false,null,0,0,null,{"$f":"IF(OR(K49=TRUE,L49=TRUE),C49,0)","v":0}]
[null,null,null,null,null,null,null,null,null,null,false,false,"Summe:",{"$f":"SUM(N48:N49)","v":0},{"$f":"SUM(O48:O49)","v":0}]
[null,null,{"$f":"IF(AND(K4=1,'Allgemeine Angaben WP'!K38=TRUE),\"Gebäudeeffizienzbonus*\",\"Gebäudeeffizienzbonus\")","v":"Gebäudeeffizienzbonus"},{"$f":"IF(AND(N35=1,N54=2,K4=1,OR(D20=\"Basisförderung möglich\",D26=\"Innovationsförderung möglich\")),\"Bonus möglich\",IF(OR(O35=1,O54>0,O4>0,AND(D20=\"Basisförderung nicht möglich\",D26=\"Innovationsförderung nicht möglich\")),\"Bonus nicht möglich\",\"\"))","v":""}]
[{"$f":"IF(AND(K52=FALSE,L52=FALSE,K4=1,'Allgemeine Angaben WP'!K38=TRUE),\"x\",\"\")","v":""},null,"Vorlage einer Online-Bestätigung eines zugelassenen Sachverständigen",null,null,null,null,null,null,null,false,false,null,{"$f":"IF(K52=TRUE,1,0)","v":0},{"$f":"IF(L52=TRUE,1,0)","v":0},null,{"$f":"IF(OR(K52=TRUE,L52=TRUE),C52,0)","v":0}]
[{"$f":"IF(AND(K53=FALSE,L53=FALSE,K4=1,'Allgemeine Angaben WP'!K38=TRUE),\"x\",\"\")","v":""},null,"Beantragung zusammen mit der Basis- oder Innovationsförderung ",null,null,null,null,null,null,null,false,false,null,{"$f":"IF(K53=TRUE,1,0)","v":0},0,null,{"$f":"IF(OR(K53=TRUE,L53=TRUE),C53,0)","v":0}]
[null,null,null,null,null,null,null,null,null,null,false,false,"Summe:",{"$f":"SUM(N52:N53)","v":0},{"$f":"SUM(O52:O53)","v":0}]
[]
[]
[]
[null,null,"*Pflichtfelder"]
[null,null,"1Mindestvoraussetzungen: Luft/Wasser: 3,5; Sole/Wasser oder Wasser/Wasser: 3,8 (Wohngebäude), 4,0 (Nichtwohngebäude)"]
[null,null,"²Formulare auf der Internetseite der BAFA verfügbar"]
[null,null,"³Luft/Wasser-Wärmepumpe: 3,10 (im Betriebspunkt A2/W35); Sole/Wasser Wärmepumpe: 4,30 (im Betriebspunkt B0/W35); Wasser/Wasser Wärmepumpe: 5,10 (im Betriebspunkt W10/W35)"]
[null,null,"4Zum Beispiel durch Hörtkorn geothermic, Nachweis über qualifizierendes Bohrunternehmen bis spätestens 31.12.2015, Auszahlung erst nach Vorlage"]
[null,null,"5Unterlagen müssen bei Antragsstellung (vor Maßnahmenbeginn) vorliegen"]
[null,null,"6PVT-Kollektoren: Photovoltaisch-thermische Kollektoren (kobinierte Photovoltaik-Solarthermie-Kollektoren)"]

{"sheet":"Anhang I","index":2,"n_rows":59,"n_cols":2,"rows_kept":59,"cut":false,"hidden":false,"merged":[]}
[null,"Anhang I"]
[]
[null,"Förderfähige Optimierungsmaßnahmen im Zusammenhang mit der Errichtung einer"]
[null,"Solarkollektoranlage gemäß Nummer IV.1.2.2.2 Buchstabe a, einer Biomasseanlage"]
[null,"gemäß Nummer IV.2.2.2.2 Buchstabe a oder einer Wärmepumpe gemäß Nummer IV.3.2.2.3"]
[null,"Buchstabe a"]
[]
[null,"– Ausbau Gas-/Öltank einschließlich Entsorgung des alten Tanks und Wiederherstellung der "]
[null,"  Außenanlage bei erdbedeckten Tanks"]
[]
[null,"– Ausbau Altheizung einschließlich Entsorgung"]
[]
[null,"– Austausch oder erstmaliger Einbau von Flächenheizsystemen und Heizleisten "]
[null,"  (System-Vorlauftemperaturen ≤ 35 °C) inklusive Anpassung oder Erneuerugn von Rohrleitungen"]
[]
[null,"– Austausch von Heizkörpern durch Niedertemperaturheizkörper (Vorlauftemperatur ≤ 60 °C)"]
[]
[null,"– Austausch von „kritischen“ Heizkörpern zur Systemtemperaturreduzierung"]
[]
[null,"– Einbau von zusätzlichen Wärmetauscher(n) zur Aufrüstung eines Niedertemperaturkessels zu"]
[null,"   einem Brennwertkessel einschließlich notwendiger Schornsteinanpassungen"]
[]
[null,"– Einbau sowie Ersatz von zur Heizungsanlage zugehöriger Mess-, Steuer- und Regelungs-"]
[null,"   technik und Nutzerinterface"]
[]
[null,"– Einbau voreinstellbarer Heizkörperthermostatventile und von Strangdifferenzdruckreglern"]
[]
[null,"– Zusätzliche Dämmung des bestehenden Verteilnetzes und des Speichers"]
[]
[null,"– Umstellung des Warmwassersystems, das heißt Integration in die Heizungsanlage "]
[null,"   (inklusive notwendiger Sanitärarbeitenwie Austausch der Armaturen, Einsatz wassersparender"]
[null,"   Maßnahmen, Abwasser-Wärmerückgewinnung)"]
[]
[null,"– Nutzerinterface und Smart Metering-Systeme für Wärme, auch als Multi-Sparten-Systeme "]
[null,"   inklusive Strom, Gas und Wasser"]
[]
[null,"– Einbau einer hocheffizienten Zirkulationspumpe"]
[]
[null,"– notwendige Maler-, Putz- und Wandverkleidungsarbeiten"]
[]
[null,"– Herstellung notwendiger Wand- und Deckendurchbrüche inklusive Dämmmaßnahmen"]
[]
[null,"– Erneuerung des Schornsteins oder Erstellung von Steigsträngen inklusive Verkleidung"]
[]
[null,"– Einrichtung oder Neubau eines Heizraums bzw. eines Bevorratungsbehälters für Biomasse"]
[]
[null,"– Notwendige bauliche Maßnahmen am Heiz- und Kesselraum"]
[]
[null,"– In Einrohrsystemen Maßnahmen zur Volumenstromregelung"]
[]
[null,"– Umbau von Ein- in Zweirohrsysteme"]
[]
[null,"– Ersatz und erstmaliger Einbau von Pufferspeichern (sofern nicht gefordert oder extra gefördert)"]
[]
[null,"– Inbetriebnahme, Einregulierung und Einweisung"]
[]
[null,"– Bei Biomasseanlagen: Errichtung eines integrierten oder nachgerüsteten Staubabscheiders"]
[null,"   sofern nicht nach NummerIV.2.3.2 (Innovationsförderung für sekundäre Partikelabscheidung) "]
[null,"   gefördert"]